Cogmind - Beta 10.1 @@@ ROGUE MODE // 2020.10.29 @ 10:33:42 Player: Atherys Result: Destroyed by G-34 Mercenary with Small Laser Performance ------------- Evolutions (1) 500 Regions Visited (2) 400 Robots Destroyed (71) 355 Value Destroyed (1726) 1726 Prototype IDs (4) 80 Alien Tech Used (0) 0 Bonus (90) 90 TOTAL SCORE: 3151 Bonus ------- High Alert Combat Kills 90 Cogmind --------- Core Integrity 0/400 Matter 293/300 Energy 100/100 System Corruption 0% Temperature Cool (6) Movement Core (300) Ox5 Location -9/Materials Parts ------- > --- POWER (1) -------- (None) > --- PROPULSION (2) --- Improved Flight Unit > --- UTILITY (3) ------ Heat Sink Large Storage Unit > --- WEAPON (3) ------- (None) > --- INVENTORY (10) --- Heavy Ion Engine Heavy Ion Engine Faulty Improved Flight Unit High-capacity Matter Pod (128) Sensor Array Terrain Scanner Terrain Scan Processor ECM Suite Shield Generator Integration Mediator Peak State ------------ > --- POWER ------------ Heavy Ion Engine > --- PROPULSION ------- Wheel Improved Flight Unit > --- UTILITY ---------- Heat Sink Large Storage Unit Hacking Suite > --- WEAPON ----------- Improved Medium Laser Improved Medium Laser Improved Medium Laser > --- INVENTORY -------- Heavy Ion Engine Heavy Ion Engine High-capacity Matter Pod Sensor Array Terrain Scanner Terrain Scan Processor ECM Suite Shield Generator Integration Mediator [Rating: 22] Favorites ----------- Power Ion Engine Engine Ion Engine Power Core Light Nuclear Core Propulsion Wheel Leg Aluminum Leg Wheel Wheel Flight Unit Improved Flight Unit Utility Hacking Suite Device Heat Sink Storage Large Storage Unit Hackware Hacking Suite Weapon Grenade Launcher Energy Gun Medium Laser Energy Cannon Beam Cannon Ballistic Gun Light Assault Rifle Launcher Grenade Launcher Build | -11 -10 -9 ------- Run | Scr Mat Mat Slots Evolved 2 | . . 2 Power . | . . . Propulsion . | . . . Utility 1 | . . 1 Weapon 1 | . . 1 Parts Attached 41 | 6 17 18 Power 7 | 1 3 3 Engine 6 | 1 2 3 Core 1 | . 1 . Reactor . | . . . Propulsion 8 | 2 2 4 Treads . | . . . Leg 1 | . 1 . Wheel 5 | 2 1 2 Hover . | . . . Flight 2 | . . 2 Utility 4 | 1 2 1 Device 1 | . . 1 Storage 2 | 1 1 . Processor . | . . . Hackware 1 | . 1 . Protection . | . . . Artifact . | . . . Weapon 22 | 2 10 10 Energy Gun 12 | 1 4 7 Energy Cannon 1 | . 1 . Ballistic Gun 2 | 1 1 . Ballistic Cannon . | . . . Launcher 7 | . 4 3 Special Weapon . | . . . Impact Weapon . | . . . Slashing Weapon . | . . . Piercing Weapon . | . . . Special Melee Weapon . | . . . Unidentified Prototypes 2 | . . 2 Parts Lost 20 | . 5 15 Power 3 | . 1 2 Propulsion 5 | . 2 3 Utility 1 | . . 1 Weapon 11 | . 2 9 Highest Loss Streak 6 | . 2 6 Average Slot Usage (%) 84 | . 90 70 Engine 9 | . 9 10 Core 2 | . 3 . Leg 1 | . . 4 Wheel 16 | . 21 5 Storage 13 | . 14 11 Hackware 12 | . 13 10 Energy Gun 12 | . 10 17 Energy Cannon 2 | . 2 . Ballistic Gun 3 | . 5 . Launcher 7 | . 8 6 Naked Turns . | . . . Heaviest Build 34 | 12 27 34 Greatest Support 20 | 20 20 10 Greatest Overweight (x) 9 | . 8 9 Average Overweight (x) 1 | . 1 2 Largest Inventory Capacity 10 | 6 10 10 Average Capacity 9 | 4 8 10 Most Carried 10 | 1 9 10 Average Carried 6 | . 5 8 Final Capacity 10 | 6 10 10 Final Carried 10 | 1 9 10 Class Distribution -------------------- 81% | Mutant 10% | Scavenger-Mutant 5% | Gunner Dominant Class ---------------- Mutant | -10/Materials Mutant | -9/Materials Resources | -11 -10 -9 ----------- Run | Scr Mat Mat Matter Collected 1126 | 227 566 333 Remotely . | . . . Salvage Created 1820 | . 900 920 Parts 123 | . 64 59 Haulers Intercepted 5 | . 1 4 Recyclers Shooed 6 | . . 6 Parts Field Recycled . | . . . Retrieved Matter . | . . . Parts Self-Destructed . | . . . Prevented . | . . . Kills | -11 -10 -9 ------- Run | Scr Mat Mat Combat Hostiles Destroyed 41 | . 23 18 Guns 16 | . 6 10 Cannons 3 | . 3 . AOE 22 | . 14 8 Classes Destroyed 10 | . 8 2 Worker 3 | . 2 1 Builder 4 | . 2 2 Hauler 5 | . 1 4 Recycler 4 | . 2 2 Operator 6 | . 4 2 Watcher 8 | . 3 5 Swarmer 7 | . 3 4 Grunt 31 | . 20 11 Brawler 1 | . . 1 Sentry 2 | . . 2 Best Kill Streak 15 | . 15 13 Combat Bots Only 9 | . 9 7 Max Kills in Single Turn 4 | . 4 3 Gunslinging 1 | . . 1 Exploded 2 | . 2 2 Melee . | . . . Uniques/NPCs Destroyed . | . . . Combat | -11 -10 -9 -------- Run | Scr Mat Mat Damage Taken 1819 | . 560 1259 Core 533 | . 131 402 Absorbed by Shields . | . . . Core Remaining (%) 73 | 100 47 . Volleys Fired 160 | . 74 86 Largest 3 | . 2 3 Hottest 168 | . 90 168 Shots Fired 266 | . 127 139 Gun 202 | . 85 117 Cannon 18 | . 18 . Launcher 46 | . 24 22 Special . | . . . Kinetic 30 | . 30 . Thermal 169 | . 59 110 Explosive 46 | . 24 22 Electromagnetic 21 | . 14 7 Robot Hit Streak 13 | . 13 12 Robot Miss Streak 8 | . 4 8 Penetration Max . | . . . Secondary Targets 1 | . . 1 Max Gunslinging Chain 1 | . . 1 Shots Hit Robots 149 | . 61 88 Core Hits 132 | . 60 72 Critical Hits . | . . . Critical Kills . | . . . Critical Parts Destroyed . | . . . Melee Attacks . | . . . Impact . | . . . Slashing . | . . . Piercing . | . . . Sneak Attacks . | . . . Combat Hostiles . | . . . Follow-up Attacks . | . . . Damage Inflicted 3923 | . 1919 2004 Guns 1487 | . 543 944 Cannons 123 | . 123 . Explosions 2313 | . 1253 1060 Melee . | . . . Ramming . | . . . Kinetic 89 | . 89 . Thermal 1315 | . 415 900 Explosive 2313 | . 1253 1060 Electromagnetic 206 | . 162 44 Impact . | . . . Slashing . | . . . Piercing . | . . . Highest Corruption . | . . . Average Corruption . | . . . Corruption Purged . | . . . Overload Shots . | . . . Overflow Damage 60 | . 7 53 Projectiles . | . . . Explosions 60 | . 7 53 Melee . | . . . Knockbacks . | . . . Impact . | . . . Kinetic . | . . . Secondary . | . . . Self-Inflicted Damage 144 | . 72 72 Shots 6 | . 3 3 Rammed 1 | . . 1 Targets Rammed 1 | . . 1 Kicked . | . . . Crushed . | . . . Highest Temperature 503 | . 265 503 Average Temperature 124 | . 65 168 Received Heat Transfer 705 | . 189 516 Effects 14 | . . 14 Shutdowns 4 | . . 4 Energy Bleed 1 | . . 1 Interference 5 | . . 5 Matter Decay 1 | . . 1 Damage (minor) 2 | . . 2 Damage (major) 1 | . . 1 Siege Activations . | . . . Robots Corrupted . | . . . Combat Hostiles . | . . . Parts Fried . | . . . Impact Corruptions . | . . . Robots Melted . | . . . Combat Hostiles . | . . . Parts Melted . | . . . Heat Transferred 3073 | . 1110 1963 Parts Sabotaged . | . . . Parts Stolen . | . . . Parts Stripped . | . . . Power Chain Reactions . | . . . Missiles Intercepted . | . . . Alert | -11 -10 -9 ------- Run | Scr Mat Mat Peak Influence 618 | . 405 618 Initial 162 | . . 162 Average 330 | . 289 446 Maximum Alert Level 2 | . 2 2 Low Security (%) 18 | 100 18 12 Level 1 52 | . 76 5 Level 2 28 | . 5 81 Level 3 . | . . . Level 4 . | . . . Level 5 . | . . . High Security . | . . . Max Security . | . . . Squads Dispatched 11 | . 8 3 Investigation 4 | . 4 . Extermination . | . . . Reinforcement 6 | . 4 2 Assault 1 | . . 1 Garrison . | . . . Intercept . | . . . Construction Impeded . | . . . Haulers Reinforced . | . . . Stealth | -11 -10 -9 --------- Run | Scr Mat Mat Distress Signals 5 | . 3 2 Communications Jammed . | . . . Distress Signals . | . . . Times Spotted 69 | . 33 36 Peak Tracking Total 11 | . 11 5 Tactical Retreats 1 | . . 1 Traps | -11 -10 -9 ------- Run | Scr Mat Mat Traps Triggered 4 | . 4 . Indirectly . | . . . Trap Hack Attempts . | . . . Triggered . | . . . Disarmed . | . . . Reprogrammed . | . . . Reused . | . . . Traps Extracted . | . . . Installed . | . . . Triggered . | . . . Machines | -11 -10 -9 ---------- Run | Scr Mat Mat Machines Disabled 7 | . 2 5 Max in Single Turn 1 | . 1 1 Machines Sabotaged 1 | . 1 . Garrisons Compromised . | . . . Overloaded Fab Kills . | . . . Fab Network Shutdowns . | . . . Hacking | -11 -10 -9 --------- Run | Scr Mat Mat Machines Accessed 6 | . 5 1 Terminals 3 | . 3 . Fabricators . | . . . Repair Stations 1 | . 1 . Recycling Units 1 | . 1 . Scanalyzers 1 | . . 1 Garrison Access . | . . . Total Hacks 18 | . 16 2 Successful 14 | . 12 2 Failed 4 | . 4 . Catastrophic . | . . . Database Lockouts . | . . . Manual 5 | . 5 . Terminals 11 | . 11 . Fabricators . | . . . Repair Stations 4 | . 4 . Recycling Units 1 | . 1 . Scanalyzers 2 | . . 2 Garrison Access . | . . . Terminal Hacks 6 | . 6 . Record 1 | . 1 . Prototype ID Bank 1 | . 1 . Alert Level 1 | . 1 . Recall Investigation 1 | . 1 . Hauler Manifests 1 | . 1 . Zone Layout 1 | . 1 . Fabricator Hacks . | . . . Repair Station Hacks 4 | . 4 . Scan Component 2 | . 2 . Repair 2 | . 2 . Recycling Unit Hacks 1 | . 1 . Report Inventory 1 | . 1 . Scanalyzer 2 | . . 2 Insert Component 1 | . . 1 Analyze 1 | . . 1 Garrison Access Hacks . | . . . Unauthorized Hacks 1 | . 1 . Terminals 1 | . 1 . Sabotage 1 | . 1 . Fabricators . | . . . Repair Stations . | . . . Recycling Units . | . . . Scanalyzers . | . . . Garrison Access . | . . . Data Cores Recovered . | . . . Used . | . . . Hacking Detections 5 | . 5 . Full Trace Events 4 | . 4 . Feedback Events . | . . . Feedback Blocked . | . . . Robot Schematics Acquired . | . . . Robots Built . | . . . Matter . | . . . Time . | . . . Total Robot Build Rating . | . . . Part Schematics Acquired 1 | . . 1 Parts Built . | . . . Matter . | . . . Time . | . . . Total Part Build Rating . | . . . Parts Repaired 2 | . 2 . Time 52 | . 52 . Parts Recycled . | . . . Recycled Matter . | . . . Retrieved Matter . | . . . Retrieved Components . | . . . Parts Scanalyzed 1 | . . 1 Part Schematics Acquired 1 | . . 1 Parts Damaged . | . . . Bothacking | -11 -10 -9 ------------ Run | Scr Mat Mat Used RIF Installer . | . . . Robots Hacked . | . . . Non-combat . | . . . Combat . | . . . Robot Hacks Applied . | . . . Relay Couplers Released . | . . . Robots Rewired . | . . . Allies Hacked . | . . . Hacks Repelled . | . . . Allies | -11 -10 -9 -------- Run | Scr Mat Mat Total Allies . | . . . Largest Group . | . . . Highest-Rated Group . | . . . Highest-Rated Ally . | . . . Total Orders . | . . . Ally Attacks . | . . . Total Damage . | . . . Kills . | . . . Allies Corrupted . | . . . Allies Melted . | . . . Intel | -11 -10 -9 ------- Run | Scr Mat Mat Robot Analysis Total . | . . . Derelict Logs Recovered . | . . . Drone Launches . | . . . Drone Recoveries . | . . . Exploration | -11 -10 -9 ------------- Run | Scr Mat Mat Turns Passed 1782 | 44 1186 552 Spaces Moved 1102 | 43 886 173 Core 32 | 1 8 23 Treads . | . . . Legs 44 | . 3 41 Wheels 1026 | 42 875 109 Hover . | . . . Flight . | . . . Fastest Speed 50 | 50 80 100 Average Speed 103 | 79 94 160 Slowest Speed 500 | 80 450 500 Overloaded Moves . | . . . Propulsion Burnouts . | . . . Robots Hopped . | . . . Cave-ins Triggered . | . . . Exploration Rate (%) 37 | 3 89 19 Regions Visited 2 Branch Regions . Pre-discovered Areas . | . . . Known Exits Taken . | . . . Unknown Exits Taken 2 | 1 1 . Scrap Searched . | . . . Spaces Dug . | . . . Terrain Destroyed 222 | . 101 121 Melee . | . . . Projectile . | . . . AOE 222 | . 101 121 Terrain Rammed . | . . . Walls Destroyed . | . . . Machines Disabled . | . . . Actions | -11 -10 -9 --------- Run | Scr Mat Mat Total 1478 | 50 1111 317 Wait 141 | . 124 17 Move 1100 | 42 885 173 Hop . | . . . Pick Up 24 | 2 9 13 Fast Attach 22 | 5 11 6 Attach 10 | 1 2 7 Detach 2 | . 1 1 Swap 9 | . 4 5 Drop 9 | . 1 8 Fire 160 | . 74 86 Melee . | . . . Ram 1 | . . 1 Kick . | . . . Crush . | . . . Escape Stasis . | . . . Rewire . | . . . Trap . | . . . Miscellaneous . | . . . Route ------- -11/Scrapyard -10/Materials (discovered 4 exits: *Mat x3 / [*Min]) -9/Materials History --------- Turn | Location | Event 8 | -11/Scrapyard | Discovered new exit (range 16) 45 | -11/Scrapyard | Entered Materials 197 | -10/Materials | Destroyed 9 combat bots 213 | -10/Materials | Discovered new exit (range 16) 304 | -10/Materials | Build established: Mutant 493 | -10/Materials | Repaired Ion Engine 520 | -10/Materials | Repaired Med. Laser 561 | -10/Materials | Discovered new exit (range 13) 733 | -10/Materials | Core integrity fell below 50% 812 | -10/Materials | Discovered new exit (range 11) 947 | -10/Materials | Discovered new exit (range 5) 1231 | -10/Materials | Entered another Materials area 1231 | -9/Materials | Evolved 2 slots: Utility x1, Weapon x1 1352 | -9/Materials | Destroyed 7 combat bots 1538 | -9/Materials | Lost 6 parts (1p2n3w) 1631 | -9/Materials | First assault squad dispatched 1720 | -9/Materials | Core integrity fell below 50% 1764 | -9/Materials | Core integrity fell below 20% 1783 | -9/Materials | Destroyed by G-34 Mercenary with Small Laser Last Messages --------------- 01698_ R-06 Scavenger collects Ion Engine. 01699_ K-01 Serf collects debris. 01700_ S-10 Pest destroyed. 01700_ C-30 ARC bursts open, deploying its payload. 01700_ G-47 Trooper unfolds itself. 01700_ G-34 Mercenary unfolds itself. 01700_ M-13 Machinist unfolds itself. 01700_ Wheel destroyed. 01702_ K-01 Serf collects debris. 01702_ Imp. Medium Laser destroyed. 01702_ R-06 Scavenger collects Med. Storage Unit. 01703_ S-10 Pest destroyed. 01705_ Slammed into K-01 Serf. 01705_ R-06 Scavenger collects Transport Network Coupler. 01711_ R-06 Scavenger collects Imp. Ion Engine. 01714_ Imp. Medium Laser destroyed. 01715_ Acquired 20 matter. 01741_ Hacking Suite destroyed. 01742_ K-01 Serf collects debris. 01761_ Hvy. Ion Engine destroyed. Map ----- +----------------------------------------------------+ | ?????????????????????????????????????????????????? | | ?????????????????????????????????????????????????? | | ?????????????????????????????????????????????????? | | ?????????????????????????????????????????????????? | | ?????????????????????????????????????????????????? | | ?????????????????????????????????????????????????? | | ?????????????????????????????????????????????????? | | ?????????????????????????????????????????????????? | | ?????????????????????????????????????????????????? | | ?????????????????????????????????????????????????? | | ?????????????????????????????????????????????????? | | ?????????????????????????????????????????????????? | | ?????????????????????????????????????????????????? | | ??????????????????????????? ?????????????????????? | | ??????????????????????????? ?????????????????????? | | ??????????????????????????# #????????????????????? | | ?????????????????????????? ????????????????????? | | ?????????????????????????? T ????????????????????? | | ?????????????????????????? ????????????????????? | | ??????????????????????????# #????????????????????? | | ??????????????????????????# #????????????????????? | | ??????????????????????????# #????????????????????? | | ????????????????########### #????????????????????? | | ????????????????#! ! # #????????????????????? | | ????????????????# # ##############+####### | | ????????????????# @# | | ????????????????# g | | ????????????????# """ """ # g % ^ | | ????????????????# """ """ ###########+#######????? | | ????????????????? """ """ #?????# =%= %* #??????? | | ????????????????? #?????# !!*[ !#??????? | | ??????????????????############### !*! #??????? | | ???????????????????????# # !! **#??????? | | ???????????????????????# # =! #??????? | | ???????????????????????# #[ = = #####??? | | ?????????? ???????????# # + | | ???? ??? ???????????# #" ! ##### | | ???# ??? #######????# #/#############??? | | ???# ?? # ???# #%## ??? | | ???# ""? # ??# ! # # ??? | | ???# """? # ######+####[# ???? | | ???# """? # #### [%=## ???? | | ???# ?? +???" """ +%% [##?? ????? | | ???# ?? #???" """ ## [=##????? ????? | | ???# %#??# #???" ????##= ##?????????????? | | #### #??# #?????????## % ###????????????? | | # # #### #???????#+## % ""#????????????? | | " # % ####+######??# "#????????????? | | # % #??# "#????????????? | | # #### # #????????????? | +----------------------------------------------------+ Best States ------------- Heat Dissipation 38 Energy Generation 14 Energy Capacity 280 Matter Stores 300 Matter Capacity 300 Sight Range 16 Terrain Scan Density 10 Evasion (%) 44 Offensive Hacking 10 Item Schematics ----------------- Grenade Launcher | -9/Materials | Scanalyzed Robot Schematics ------------------ None Fabricated ------------ Nothing Alien Tech Used ----------------- None Achievements -------------- Brute Force Challenges ------------ None Game ------ Seed HeatHardenedChip Manual? 0 Play Time 00:30:21 Cumulative 17.5 hours Start 2020.10.29 @ 10:03:11 End 2020.10.29 @ 10:33:42 Sessions 1 Manual Loads 0 Difficulty Rogue Special Mode None Game No. 28 Rogue 28 Adventurer 0 Explorer 0 Win Type - Total 0 Types 0/0/0/0/0/0/0/0/0 Lore% 19 Gallery% 22 Achievement% 19 Wizard Run 0 Options --------- ASCII 0 Keyboard 0 Movement Mouse Keybinds 0 Fullscreen 2 Font 18/SmallcapsGlow Map View 76x50 Tactical HUD 1 Map Filters NONE Filters NONE Steam X RUN: fe1dc95b-1568-424b-b9f5-daefc37380ca